[Event "GM ZIA Smirity-A 2025"]
[Site "Dhaka"]
[Date "2025.02.18"]
[Round "4.11"]
[White "Tahmidul, Haque"]
[Black "Khan, Nazrana"]
[Result "0-1"]
[Annotator "ChessBase"]
[ECO "B41"]
[WhiteElo "2016"]
[BlackElo "1840"]
[PlyCount "92"]
[EventDate "2025.02.17"]
[EventType "swiss"]
[EventCountry "BAN"]
[SourceTitle "playchess.com"]
[Source "ChessBase"]
[SourceQuality "1"]
[TimeControl "5400+30"]

1. e4 {[%emt 0:19:29]} c5 {[%emt 0:00:05]} 2. Nf3 {[%emt 0:00:05]} e6 {[%emt 0:00:03]} 3. d4 {[%emt 0:00:06]} cxd4 {[%emt 0:00:06]} 4. Nxd4 {[%emt 0:00:05]} a6 {[%emt 0:00:05]} 5. c4 {[%emt 0:00:06]} Nf6 {[%emt 0:00:58]} 6. Nc3 {[%emt 0:00:03]} Qc7 {[%emt 0:00:53]} 7. a3 {[%emt 0:00:08]} b6 {[%emt 0:01:31]} 8. Be2 {[%emt 0:02:22]} Bb7 {[%emt 0:00:08]} 9. f3 {[%emt 0:00:06]} d6 {[%emt 0:00:40]} 10. Be3 {[%emt 0:00:07]} Be7 {[%emt 0:00:30]} 11. Rc1 {[%emt 0:00:07]} Nbd7 {[%emt 0:00:24]} 12. b4 {[%emt 0:00:07]} O-O {[%emt 0:00:29]} 13. O-O {[%emt 0:00:08]} Rfc8 {[%emt 0:00:25]} 14. Qd2 {[%emt 0:01:01]} Qd8 {[%emt 0:00:57]} 15. Rfd1 {[%emt 0:02:23]} Rab8 {[%emt 0:01:27]} 16. Na4 {[%emt 0:01:42]} Qf8 {[%emt 0:05:25]} 17. Nb3 {[%emt 0:01:34]} h6 {[%emt 0:03:34]} 18. Bxb6 {[%emt 0:08:56]} Bxe4 {[%emt 0:02:08]} 19. fxe4 {[%emt 0:05:11]} Nxb6 {[%emt 0:00:29]} 20. Nxb6 {[%emt 0:00:03]} Rxb6 {[%emt 0:00:17]} 21. e5 {[%emt 0:00:03]} dxe5 {[%emt 0:04:43]} 22. c5 {[%emt 0:00:26]} Rbb8 {[%emt 0:01:13]} 23. Bxa6 {[%emt 0:00:15]} Rd8 {[%emt 0:02:54]} 24. Qe2 {[%emt 0:00:36]} Rxd1+ {[%emt 0:00:54]} 25. Rxd1 {[%emt 0:00:12]} Ra8 {[%emt 0:01:26]} 26. Qc4 {[%emt 0:07:48]} Nd5 {[%emt 0:01:17]} 27. Kf2 {[%emt 0:01:00]} Qb8 {[%emt 0:02:56]} 28. b5 {[%emt 0:14:54]} e4 {[%emt 0:00:41]} 29. g3 {[%emt 0:01:10]} Qe5 {[%emt 0:01:09]} 30. Nd4 {[%emt 0:08:48]} Bg5 {[%emt 0:07:51]} 31. Re1 {[%emt 0:10:12]} Qf6+ {[%emt 0:02:45]} 32. Ke2 {[%emt 0:00:41]} Be3 {[%emt 0:01:59]} 33. Rf1 {[%emt 0:01:31]} Qxd4 {[%emt 0:01:54]} 34. Qxd4 {[%emt 0:00:06]} Bxd4 {[%emt 0:00:09]} 35. Rc1 {[%emt 0:00:15]} Bb2 {[%emt 0:05:26]} 36. Rc2 {[%emt 0:00:45]} Bxa3 {[%emt 0:01:50]} 37. b6 {[%emt 0:00:33]} Nxb6 {[%emt 0:03:47]} 38. cxb6 {[%emt 0:01:09]} Rxa6 {[%emt 0:00:31]} 39. Rc6 {[%emt 0:02:07]} Bf8 {[%emt 0:02:08]} 40. b7 {[%emt 0:00:30]} Ra2+ {[%emt 0:00:56]} 41. Ke3 {[%emt 0:00:06]} Rb2 {[%emt 0:00:20]} 42. Rc7 {[%emt 0:00:06]} f5 {[%emt 0:00:54]} 43. Kd4 {[%emt 0:01:01]} Kh7 {[%emt 0:03:14]} 44. h4 {[%emt 0:00:21]} Bd6 {[%emt 0:00:45]} 45. Rd7 {[%emt 0:00:15]} Bxg3 {[%emt 0:00:43]} 46. h5 {[%emt 0:00:06]} Rd2+ {[%emt 0:00:25]} 0-1

[Event "GM ZIA Smirity-A 2025"]
[Site "Dhaka"]
[Date "2025.02.18"]
[Round "4.12"]
[White "Islam, M.M. Zahirul"]
[Black "Rayan Rashid Mugdho"]
[Result "1/2-1/2"]
[Annotator "ChessBase"]
[ECO "D26"]
[WhiteElo "1912"]
[BlackElo "1861"]
[PlyCount "80"]
[EventDate "2025.02.17"]
[EventType "swiss"]
[EventCountry "BAN"]
[SourceTitle "playchess.com"]
[Source "ChessBase"]
[SourceQuality "1"]
[TimeControl "5400+30"]

1. d4 {[%emt 0:15:54]} d5 {[%emt 0:00:27]} 2. Bf4 {[%emt 0:00:10]} Nf6 {[%emt 0:01:06]} 3. e3 {[%emt 0:00:11]} c5 {[%emt 0:00:33]} 4. Nf3 {[%emt 0:00:10]} Nc6 {[%emt 0:00:15]} 5. c4 {[%emt 0:01:25]} e6 {[%emt 0:05:17]} 6. Nc3 {[%emt 0:01:04]} a6 {[%emt 0:04:20]} 7. Rc1 {[%emt 0:01:08]} dxc4 {[%emt 0:06:39]} 8. Bxc4 {[%emt 0:00:27]} cxd4 {[%emt 0:00:33]} 9. exd4 {[%emt 0:01:06]} Be7 {[%emt 0:01:27]} 10. O-O {[%emt 0:00:09]} O-O {[%emt 0:00:54]} 11. d5 {[%emt 0:03:05]} Na5 {[%emt 0:04:30]} 12. Be2 {[%emt 0:00:38]} Nxd5 13. Nxd5 {[%emt 0:00:37]} Qxd5 {[%emt 0:01:49]} 14. Qxd5 {[%emt 0:02:08]} exd5 {[%emt 0:00:08]} 15. Rfd1 {[%emt 0:00:17]} Be6 {[%emt 0:00:56]} 16. Nd4 {[%emt 0:01:31]} Rac8 {[%emt 0:03:18]} 17. Bc7 {[%emt 0:01:47]} Nc4 {[%emt 0:01:56]} 18. Nxe6 {[%emt 0:00:47]} fxe6 {[%emt 0:00:09]} 19. Bxc4 {[%emt 0:00:11]} dxc4 {[%emt 0:09:41]} 20. Rxc4 {[%emt 0:00:28]} Bf6 {[%emt 0:01:07]} 21. b3 {[%emt 0:01:15]} b5 {[%emt 0:10:27]} 22. Rcc1 {[%emt 0:00:50]} Rf7 {[%emt 0:02:30]} 23. Bb6 {[%emt 0:04:45]} Rxc1 {[%emt 0:03:33]} 24. Rxc1 {[%emt 0:00:42]} Rd7 {[%emt 0:01:58]} 25. Be3 {[%emt 0:01:41]} Kf7 {[%emt 0:01:25]} 26. g3 {[%emt 0:00:03]} Rd6 {[%emt 0:05:10]} 27. Kg2 {[%emt 1:01:31]} e5 {[%emt 0:03:13]} 28. Kf3 {[%emt 0:00:00]} Ke6 {[%emt 0:31:09]} 29. Ke4 {[%emt 0:00:00]} Kd7 {[%emt 0:00:00]} 30. h4 {[%emt 0:00:00]} g6 {[%emt 0:00:00]} 31. Rc5 {[%emt 0:00:00]} Bg7 {[%emt 0:00:00]} 32. Rd5 {[%emt 0:00:00]} Ke6 {[%emt 0:00:00]} 33. Rxd6+ {[%emt 0:00:00]} Kxd6 {[%emt 0:00:00]} 34. g4 {[%emt 0:00:00]} Ke6 {[%emt 0:00:00]} 35. Bc5 {[%emt 0:00:00]} Bf6 {[%emt 0:00:00]} 36. g5 {[%emt 0:00:00]} Bd8 {[%emt 0:00:00]} 37. f3 {[%emt 0:00:00]} Ba5 {[%emt 0:00:00]} 38. Bf2 {[%emt 0:00:00]} Bc7 {[%emt 0:00:00]} 39. Bg3 {[%emt 0:00:00]} Bd6 {[%emt 0:00:00]} 40. Bh2 {[%emt 0:00:00]} Bc7 {[%emt 0:00:00]} 1/2-1/2

[Event "GM ZIA Smirity-A 2025"]
[Site "Dhaka"]
[Date "2025.02.18"]
[Round "4.13"]
[White "Alam, Monjur"]
[Black "Abrar, Reazul Ahnaf Mohamma"]
[Result "1-0"]
[Annotator "NA"]
[ECO "E94"]
[WhiteElo "1906"]
[BlackElo "1771"]
[PlyCount "81"]
[EventDate "2025.02.17"]
[EventType "swiss"]
[EventCountry "BAN"]
[SourceTitle "playchess.com"]
[Source "ChessBase"]
[SourceQuality "1"]
[TimeControl "5400+30"]

1. d4 {[%emt 0:04:38]} Nf6 {[%emt 0:00:06]} 2. c4 {[%emt 0:00:15]} g6 {[%emt 0:00:04]} 3. Nc3 {[%emt 0:00:03]} Bg7 {[%emt 0:00:04]} 4. Nf3 {[%emt 0:00:10]} O-O {[%emt 0:00:00]} 5. e4 {[%emt 0:00:00]} d6 {[%emt 0:00:00]} 6. Be2 {[%emt 0:00:00]} Nbd7 {[%emt 0:00:13]} 7. O-O {[%emt 0:00:05]} e5 {[%emt 0:00:05]} 8. d5 {[%emt 0:00:09]} Nc5 {[%emt 0:01:05]} 9. Qc2 {[%emt 0:00:22]} Nh5 {[%emt 0:04:50]} 10. b4 {[%emt 0:03:24]} Nd7 {[%emt 0:01:12]} 11. Bd2 {[%emt 0:05:26]} Nf4 {[%emt 0:03:02]} 12. Rfe1 {[%emt 0:04:58]} Re8 {[%emt 0:02:26]} 13. Bf1 {[%emt 0:00:28]} Nf8 {[%emt 0:01:59]} 14. Be3 {[%emt 0:06:15]} f5 {[%emt 0:01:32]} 15. g3 {[%emt 0:04:27]} Nh5 {[%emt 0:01:13]} 16. Bg5 {[%emt 0:01:05]} Nf6 {[%emt 0:02:04]} 17. Bd3 {[%emt 0:03:06]} f4 {[%emt 0:02:09]} 18. c5 {[%emt 0:00:51]} h6 {[%emt 0:02:57]} 19. Bxf6 {[%emt 0:00:38]} Qxf6 {[%emt 0:00:12]} 20. Nh4 {[%emt 0:03:24]} h5 {[%emt 0:12:24]} 21. cxd6 {[%emt 0:02:52]} g5 {[%emt 0:02:23]} 22. Nf5 {[%emt 0:04:38]} Bxf5 {[%emt 0:00:09]} 23. exf5 {[%emt 0:00:03]} cxd6 {[%emt 0:00:19]} 24. Ne4 {[%emt 0:00:34]} Qe7 {[%emt 0:02:38]} 25. Rac1 {[%emt 0:02:52]} Rad8 {[%emt 0:07:57]} 26. Qa4 {[%emt 0:02:34]} a6 {[%emt 0:02:36]} 27. b5 {[%emt 0:00:23]} g4 {[%emt 0:10:08]} 28. bxa6 {[%emt 0:00:46]} bxa6 {[%emt 0:00:07]} 29. Qxa6 {[%emt 0:00:33]} h4 {[%emt 0:41:06]} 30. Bb5 {[%emt 0:00:55]} hxg3 {[%emt 0:00:00]} 31. hxg3 {[%emt 0:00:43]} Ra8 {[%emt 0:00:00]} 32. Qxd6 {[%emt 0:01:25]} Qxd6 {[%emt 0:00:00]} 33. Nxd6 {[%emt 0:00:06]} Red8 {[%emt 0:00:00]} 34. Ne4 {[%emt 0:00:20]} Rxa2 {[%emt 0:00:00]} 35. d6 {[%emt 0:00:16]} Ra5 {[%emt 0:00:00]} 36. Bc4+ {[%emt 0:00:35]} Kh7 {[%emt 0:00:00]} 37. Ng5+ {[%emt 0:00:22]} Kh6 {[%emt 0:00:00]} 38. Nf7+ {[%emt 0:00:10]} Kh5 {[%emt 0:00:00]} 39. Nxd8 {[%emt 0:00:18]} Kg5 {[%emt 0:00:00]} 40. Ne6+ {[%emt 0:00:05]} Kxf5 {[%emt 0:00:00]} 41. Nxg7+ {[%emt 0:00:04]} 1-0

[Event "GM ZIA Smirity-A 2025"]
[Site "Dhaka"]
[Date "2025.02.18"]
[Round "4.14"]
[White "Safayat, Kibria Azaan"]
[Black "Sagor"]
[Result "1-0"]
[Annotator "NA"]
[ECO "D02"]
[WhiteElo "1850"]
[BlackElo "2001"]
[PlyCount "71"]
[EventDate "2025.02.17"]
[EventType "swiss"]
[EventCountry "BAN"]
[SourceTitle "playchess.com"]
[Source "ChessBase"]
[SourceQuality "1"]
[TimeControl "5400+30"]

1. d4 {[%emt 0:04:48]} Nf6 {[%emt 0:00:07]} 2. Nf3 {[%emt 0:00:02]} e6 {[%emt 0:00:18]} 3. g3 {[%emt 0:00:39]} b6 {[%emt 0:00:22]} 4. Bg2 {[%emt 0:00:16]} Bb7 {[%emt 0:00:10]} 5. O-O {[%emt 0:00:05]} Be7 {[%emt 0:00:17]} 6. b3 {[%emt 0:00:35]} O-O {[%emt 0:00:15]} 7. Bb2 {[%emt 0:00:05]} d5 {[%emt 0:00:10]} 8. e3 {[%emt 0:01:19]} Nbd7 {[%emt 0:00:25]} 9. c4 {[%emt 0:00:53]} dxc4 {[%emt 0:00:13]} 10. bxc4 {[%emt 0:00:31]} c5 {[%emt 0:00:16]} 11. Ne5 {[%emt 0:06:49]} Bxg2 {[%emt 0:01:08]} 12. Kxg2 {[%emt 0:00:26]} Nxe5 {[%emt 0:00:26]} 13. dxe5 {[%emt 0:00:27]} Nd7 {[%emt 0:00:46]} 14. f4 {[%emt 0:00:26]} Qc7 {[%emt 0:00:08]} 15. Nc3 {[%emt 0:00:26]} Rad8 {[%emt 0:01:16]} 16. Nb5 {[%emt 0:02:58]} Qc8 {[%emt 0:01:46]} 17. Qf3 {[%emt 0:00:36]} a6 {[%emt 0:00:19]} 18. Na7 {[%emt 0:09:02]} Qc7 {[%emt 0:00:47]} 19. Nc6 {[%emt 0:00:03]} Rde8 {[%emt 0:00:16]} 20. Rfd1 {[%emt 0:02:38]} Nb8 {[%emt 0:01:17]} 21. Nxe7+ {[%emt 0:04:36]} Rxe7 {[%emt 0:01:08]} 22. Rd6 {[%emt 0:00:04]} Rd7 {[%emt 0:00:42]} 23. Rad1 {[%emt 0:00:14]} Rfd8 {[%emt 0:01:04]} 24. Qg4 {[%emt 0:09:39]} g6 {[%emt 0:03:23]} 25. Qg5 {[%emt 0:01:57]} Nc6 {[%emt 0:03:30]} 26. f5 {[%emt 0:11:22]} Rxd6 {[%emt 0:32:11]} 27. exd6 {[%emt 0:01:11]} Qd7 {[%emt 0:00:16]} 28. Bf6 {[%emt 0:03:18]} Qe8 {[%emt 0:09:18]} 29. Bxd8 {[%emt 0:00:18]} Qxd8 {[%emt 0:03:50]} 30. Qxd8+ {[%emt 0:01:09]} Nxd8 {[%emt 0:00:01]} 31. f6 {[%emt 0:00:36]} b5 {[%emt 0:00:28]} 32. cxb5 {[%emt 0:00:52]} axb5 {[%emt 0:00:01]} 33. Rb1 {[%emt 0:01:21]} b4 {[%emt 0:00:18]} 34. Rc1 {[%emt 0:00:53]} Nb7 {[%emt 0:00:26]} 35. d7 {[%emt 0:00:06]} h5 {[%emt 0:00:29]} 36. Rxc5 {[%emt 0:00:11]} 1-0

[Event "GM ZIA Smirity-A 2025"]
[Site "Dhaka"]
[Date "2025.02.18"]
[Round "4.15"]
[White "Hamid, Rani"]
[Black "Neelava, Choudhury"]
[Result "1-0"]
[Annotator "ChessBase"]
[ECO "C54"]
[WhiteElo "1913"]
[BlackElo "1784"]
[PlyCount "95"]
[EventDate "2025.02.17"]
[EventType "swiss"]
[EventCountry "BAN"]
[SourceTitle "playchess.com"]
[Source "ChessBase"]
[SourceQuality "1"]
[TimeControl "5400+30"]

1. e4 {[%emt 0:12:53]} e5 {[%emt 0:00:10]} 2. Nf3 {[%emt 0:00:14]} Nc6 {[%emt 0:00:04]} 3. Bc4 {[%emt 0:00:12]} Bc5 {[%emt 0:00:05]} 4. c3 {[%emt 0:00:08]} Nf6 {[%emt 0:00:03]} 5. d4 {[%emt 0:00:14]} exd4 {[%emt 0:00:02]} 6. e5 {[%emt 0:00:05]} d5 {[%emt 0:00:10]} 7. Bb5 {[%emt 0:00:08]} Ne4 {[%emt 0:00:04]} 8. cxd4 {[%emt 0:01:05]} Bb4+ {[%emt 0:00:07]} 9. Bd2 {[%emt 0:00:39]} Nxd2 {[%emt 0:00:09]} 10. Nbxd2 {[%emt 0:00:09]} O-O {[%emt 0:00:08]} 11. O-O {[%emt 0:00:12]} Ne7 {[%emt 0:00:03]} 12. Bd3 {[%emt 0:00:40]} c6 {[%emt 0:04:19]} 13. a3 {[%emt 0:00:56]} Ba5 {[%emt 0:00:21]} 14. b4 {[%emt 0:00:16]} Bb6 {[%emt 0:00:20]} 15. a4 {[%emt 0:01:49]} a5 {[%emt 0:02:23]} 16. b5 {[%emt 0:00:56]} c5 {[%emt 0:01:28]} 17. dxc5 {[%emt 0:00:32]} Bxc5 {[%emt 0:00:54]} 18. Qc2 {[%emt 0:01:59]} Bb4 {[%emt 0:03:18]} 19. Bxh7+ {[%emt 0:00:22]} Kh8 {[%emt 0:00:16]} 20. Bd3 {[%emt 0:00:26]} Bg4 {[%emt 0:01:29]} 21. Rfc1 {[%emt 0:02:51]} Rc8 {[%emt 0:03:18]} 22. Qb3 {[%emt 0:00:28]} Qb6 {[%emt 0:01:28]} 23. h3 {[%emt 0:03:23]} Bh5 {[%emt 0:01:16]} 24. g4 {[%emt 0:05:22]} Bg6 {[%emt 0:01:15]} 25. Nf1 {[%emt 0:02:22]} Bc5 {[%emt 0:06:12]} 26. Rc2 {[%emt 0:00:50]} Bd4 {[%emt 0:05:06]} 27. Rd1 {[%emt 0:00:20]} Rxc2 {[%emt 0:11:58]} 28. Qxc2 {[%emt 0:00:06]} Rc8 {[%emt 0:00:38]} 29. Qe2 {[%emt 0:01:03]} Bc5 {[%emt 0:02:51]} 30. Ng3 {[%emt 0:01:33]} Bxd3 {[%emt 0:03:45]} 31. Rxd3 {[%emt 0:00:12]} Qh6 {[%emt 0:05:05]} 32. Kg2 {[%emt 0:01:50]} Ng6 {[%emt 0:04:45]} 33. Nh5 {[%emt 0:02:02]} Bb4 {[%emt 0:00:36]} 34. Qe3 {[%emt 0:06:23]} Qxe3 {[%emt 0:00:22]} 35. Rxe3 {[%emt 0:00:10]} Rc3 {[%emt 0:00:07]} 36. Re2 {[%emt 0:01:17]} Ra3 {[%emt 0:04:11]} 37. e6 {[%emt 0:00:21]} fxe6 {[%emt 0:03:36]} 38. Rxe6 {[%emt 0:00:05]} Ne7 {[%emt 0:01:37]} 39. Rb6 {[%emt 0:01:59]} Bc5 {[%emt 0:00:36]} 40. Rxb7 {[%emt 0:00:24]} Rxa4 {[%emt 0:00:08]} 41. Rb8+ {[%emt 0:05:17]} Ng8 {[%emt 0:00:46]} 42. Ne5 {[%emt 0:05:09]} Ra2 {[%emt 0:01:43]} 43. Nd3 {[%emt 0:00:32]} Bd4 {[%emt 0:00:19]} 44. Nhf4 {[%emt 0:01:45]} Ra3 {[%emt 0:00:59]} 45. Rd8 {[%emt 0:02:24]} Rb3 {[%emt 0:01:02]} 46. Rxd5 {[%emt 0:00:13]} Bb6 {[%emt 0:00:09]} 47. Rh5+ {[%emt 0:00:25]} Nh6 {[%emt 0:00:09]} 48. g5 {[%emt 0:00:33]} 1-0

[Event "GM ZIA Smirity-A 2025"]
[Site "Dhaka"]
[Date "2025.02.19"]
[Round "5.1"]
[White "Zia, Tahsin Tajwar"]
[Black "Sakline Mostafa, Sajid"]
[Result "1-0"]
[Annotator "RC"]
[ECO "B31"]
[WhiteElo "2323"]
[BlackElo "2199"]
[PlyCount "139"]
[EventDate "2025.02.17"]
[EventType "swiss"]
[EventCountry "BAN"]
[SourceTitle "playchess.com"]
[Source "ChessBase"]
[SourceQuality "1"]
[TimeControl "5400+30"]

1. e4 {[%emt 0:00:35]} c5 {[%emt 0:00:12]} 2. Nf3 {[%emt 0:00:20]} Nc6 {[%emt 0:00:01]} 3. Bb5 {[%emt 0:00:06]} Nf6 {[%emt 0:00:06]} 4. Nc3 {[%emt 0:00:04]} g6 {[%emt 0:00:09]} 5. h3 {[%emt 0:00:41]} Qc7 {[%emt 0:01:00]} 6. O-O {[%emt 0:04:09]} Bg7 {[%emt 0:03:52]} 7. Re1 {[%emt 0:00:11]} e5 {[%emt 0:01:06]} 8. Nd5 {[%emt 0:01:39]} Nxd5 {[%emt 0:10:46]} 9. exd5 {[%emt 0:00:28]} Nd4 {[%emt 0:02:59]} 10. Nxd4 {[%emt 0:00:09]} cxd4 {[%emt 0:00:08]} 11. c3 {[%emt 0:00:19]} a6 {[%emt 0:05:26]} 12. Ba4 {[%emt 0:04:35]} b5 {[%emt 0:01:29]} 13. Bb3 {[%emt 0:00:21]} dxc3 {[%emt 0:04:10]} 14. d6 {[%emt 0:27:08]} Qc6 {[%emt 0:03:47]} 15. dxc3 {[%emt 0:00:46]} Bb7 {[%emt 0:00:19]} 16. f3 {[%emt 0:00:07]} O-O {[%emt 0:02:25]} 17. Bg5 {[%emt 0:01:20]} Rfe8 {[%emt 0:00:59]} 18. Qd2 {[%emt 0:01:06]} Bf8 {[%emt 0:10:18]} 19. Rad1 {[%emt 0:00:44]} a5 {[%emt 0:01:16]} 20. a3 {[%emt 0:27:18]} Ra6 {[%emt 0:04:40]} 21. Be7 {[%emt 0:02:42]} Qc5+ {[%emt 0:17:33]} 22. Qe3 {[%emt 0:00:19]} Qxe3+ {[%emt 0:01:19]} 23. Rxe3 {[%emt 0:00:20]} e4 {[%emt 0:00:58]} 24. fxe4 {[%emt 0:12:39]} Bxe7 {[%emt 0:00:11]} 25. Rf3 {[%emt 0:01:04]} Rxd6 {[%emt 0:10:35]} 26. Bxf7+ {[%emt 0:02:56]} Kf8 {[%emt 0:00:35]} 27. Rxd6 {[%emt 0:00:05]} Bxd6 {[%emt 0:00:43]} 28. Bd5+ {[%emt 0:00:06]} Ke7 {[%emt 0:04:18]} 29. Bxb7 {[%emt 0:01:46]} Rf8 {[%emt 0:01:11]} 30. Rxf8 {[%emt 0:00:43]} Kxf8 {[%emt 0:00:07]} 31. Ba6 {[%emt 0:00:40]} Bf4 {[%emt 0:08:12]} 32. Bxb5 {[%emt 0:00:08]} Bc1 {[%emt 0:00:04]} 33. b3 {[%emt 0:02:11]} d6 {[%emt 0:01:46]} 34. a4 {[%emt 0:00:33]} Bd2 {[%emt 0:00:07]} 35. b4 {[%emt 0:00:18]} Bxc3 {[%emt 0:00:38]} 36. bxa5 {[%emt 0:00:02]} Bxa5 {[%emt 0:00:01]} 37. Kf2 {[%emt 0:00:10]} Ke7 {[%emt 0:02:10]} 38. Ke3 {[%emt 0:00:09]} Bb6+ {[%emt 0:02:57]} 39. Kd3 {[%emt 0:00:13]} h5 {[%emt 0:00:30]} 40. Kc4 {[%emt 0:00:23]} h4 {[%emt 0:00:19]} 41. Kd5 {[%emt 0:00:23]} Ba5 {[%emt 0:00:12]} 42. Kc6 {[%emt 0:00:49]} g5 {[%emt 0:00:53]} 43. Bc4 {[%emt 0:00:49]} Bd2 {[%emt 0:00:30]} 44. Kb6 {[%emt 0:01:49]} Be3+ {[%emt 0:00:19]} 45. Kc6 {[%emt 0:00:58]} Bd2 {[%emt 0:00:02]} 46. Be2 {[%emt 0:00:39]} Be1 {[%emt 0:00:29]} 47. Bg4 {[%emt 0:00:19]} Bd2 {[%emt 0:00:30]} 48. Kb6 {[%emt 0:00:12]} Be3+ {[%emt 0:01:37]} 49. Kb5 {[%emt 0:00:06]} d5 {[%emt 0:00:16]} 50. exd5 {[%emt 0:00:24]} Kd6 {[%emt 0:00:24]} 51. Bf3 {[%emt 0:00:07]} Kc7 {[%emt 0:00:30]} 52. Ka6 {[%emt 0:01:04]} Bf2 {[%emt 0:00:21]} 53. Bg4 {[%emt 0:03:27]} Be3 {[%emt 0:00:22]} 54. Kb5 {[%emt 0:00:08]} Bg1 {[%emt 0:00:50]} 55. Kc4 {[%emt 0:02:30]} Kd6 {[%emt 0:00:08]} 56. Be6 {[%emt 0:00:15]} Bb6 {[%emt 0:00:57]} 57. Kb5 {[%emt 0:00:16]} Bg1 {[%emt 0:00:02]} 58. Bf7 {[%emt 0:01:16]} Kc7 {[%emt 0:00:22]} 59. Bh5 {[%emt 0:00:02]} Ba7 {[%emt 0:00:22]} 60. Bg4 {[%emt 0:00:29]} Bf2 {[%emt 0:00:35]} 61. a5 {[%emt 0:00:20]} Ba7 {[%emt 0:00:33]} 62. d6+ {[%emt 0:01:05]} Kxd6 {[%emt 0:00:27]} 63. Ka6 {[%emt 0:00:05]} Be3 {[%emt 0:00:33]} 64. Kb7 {[%emt 0:00:05]} Ke5 {[%emt 0:01:54]} 65. a6 {[%emt 0:00:05]} Kf4 {[%emt 0:00:00]} 66. a7 {[%emt 0:00:18]} Bxa7 {[%emt 0:00:00]} 67. Kxa7 {[%emt 0:00:04]} Kg3 {[%emt 0:00:00]} 68. Bf3 {[%emt 0:00:28]} g4 {[%emt 0:00:00]} 69. hxg4 {[%emt 0:00:12]} h3 {[%emt 0:00:00]} 70. gxh3 {[%emt 0:00:03]} 1-0

[Event "GM ZIA Smirity-A 2025"]
[Site "Dhaka"]
[Date "2025.02.19"]
[Round "5.2"]
[White "Mehdi Hasan Parag"]
[Black "Md Minhaz Uddin"]
[Result "0-1"]
[Annotator "RC"]
[ECO "C42"]
[WhiteElo "2158"]
[BlackElo "2230"]
[PlyCount "106"]
[EventDate "2025.02.17"]
[EventType "swiss"]
[EventCountry "BAN"]
[SourceTitle "playchess.com"]
[Source "ChessBase"]
[SourceQuality "1"]
[TimeControl "5400+30"]

1. e4 {[%emt 0:00:03]} e5 {[%emt 0:04:47]} 2. Nf3 {[%emt 0:00:14]} Nf6 {[%emt 0:00:08]} 3. Nxe5 {[%emt 0:00:19]} d6 {[%emt 0:00:02]} 4. Nf3 {[%emt 0:00:08]} Nxe4 {[%emt 0:00:06]} 5. Nc3 {[%emt 0:00:02]} Nxc3 {[%emt 0:00:08]} 6. dxc3 {[%emt 0:00:02]} Be7 {[%emt 0:00:06]} 7. Be3 {[%emt 0:00:10]} Nd7 {[%emt 0:03:12]} 8. Qd2 {[%emt 0:00:13]} Nf6 {[%emt 0:00:02]} 9. O-O-O {[%emt 0:00:33]} O-O {[%emt 0:00:02]} 10. Bd3 {[%emt 0:00:25]} Be6 {[%emt 0:00:03]} 11. Kb1 {[%emt 0:02:36]} c5 {[%emt 0:00:04]} 12. Ng5 {[%emt 0:01:43]} b5 {[%emt 0:04:00]} 13. Nxe6 {[%emt 0:01:07]} fxe6 {[%emt 0:00:02]} 14. Rhe1 {[%emt 0:00:34]} d5 {[%emt 0:09:13]} 15. f3 {[%emt 0:03:02]} Rb8 {[%emt 0:22:51]} 16. Bf1 {[%emt 0:01:10]} Nd7 {[%emt 0:02:38]} 17. Bf4 {[%emt 0:01:25]} Rb6 {[%emt 0:00:15]} 18. g3 {[%emt 0:01:49]} Rf7 {[%emt 0:02:45]} 19. h4 {[%emt 0:07:00]} c4 {[%emt 0:03:34]} 20. Bg5 {[%emt 0:05:20]} Bxg5 {[%emt 0:03:30]} 21. hxg5 {[%emt 0:02:16]} Rxf3 {[%emt 0:02:21]} 22. Bg2 {[%emt 0:07:26]} Rf7 {[%emt 0:03:20]} 23. Re2 {[%emt 0:02:10]} Nf8 {[%emt 0:01:10]} 24. Bh3 {[%emt 0:02:34]} Qb8 {[%emt 0:01:09]} 25. Qe1 {[%emt 0:02:53]} Qd6 {[%emt 0:05:03]} 26. Rd4 {[%emt 0:05:19]} a5 {[%emt 0:00:22]} 27. g6 {[%emt 0:01:33]} hxg6 {[%emt 0:00:18]} 28. Rh4 {[%emt 0:00:46]} Rf6 {[%emt 0:07:34]} 29. Rd4 {[%emt 0:08:40]} b4 {[%emt 0:01:10]} 30. cxb4 {[%emt 0:01:45]} axb4 {[%emt 0:01:13]} 31. g4 {[%emt 0:01:38]} Rf4 {[%emt 0:13:25]} 32. Rxf4 {[%emt 0:01:31]} Qxf4 {[%emt 0:00:03]} 33. Rf2 {[%emt 0:00:20]} Qd6 {[%emt 0:01:32]} 34. g5 {[%emt 0:00:46]} Rb8 {[%emt 0:03:59]} 35. Rf1 {[%emt 0:04:53]} e5 {[%emt 0:00:50]} 36. Qf2 {[%emt 0:00:59]} Qe7 {[%emt 0:00:11]} 37. Bg2 {[%emt 0:01:55]} Rd8 {[%emt 0:03:01]} 38. Rd1 {[%emt 0:03:55]} e4 {[%emt 0:00:14]} 39. Qd2 {[%emt 0:00:42]} Ne6 {[%emt 0:00:48]} 40. Qe3 {[%emt 0:04:10]} Qxg5 {[%emt 0:00:35]} 41. Qb6 {[%emt 0:00:26]} Qe7 {[%emt 0:00:31]} 42. Bh3 {[%emt 0:01:25]} Nf4 {[%emt 0:01:02]} 43. Bf1 {[%emt 0:00:16]} e3 {[%emt 0:01:36]} 44. Bxc4 {[%emt 0:00:42]} e2 {[%emt 0:00:02]} 45. Bxe2 {[%emt 0:00:27]} Nxe2 {[%emt 0:00:02]} 46. Qxg6 {[%emt 0:00:14]} Nf4 {[%emt 0:00:29]} 47. Qg4 {[%emt 0:00:23]} Qe5 {[%emt 0:00:32]} 48. Rh1 {[%emt 0:00:52]} Qf6 {[%emt 0:01:19]} 49. Rf1 {[%emt 0:00:36]} Rf8 {[%emt 0:00:18]} 50. Qd1 {[%emt 0:02:11]} Qf5 {[%emt 0:00:35]} 51. Qd2 {[%emt 0:00:25]} Qe4 {[%emt 0:00:49]} 52. Re1 {[%emt 0:01:08]} Ne2 {[%emt 0:01:10]} 53. a3 {[%emt 0:00:43]} b3 {[%emt 0:00:31]} 0-1